[Event "*** Titled Tuesday Blitz"]
[Site "Chess.com"]
[Date "2021.03.02"]
[Round "8"]
[White "stepakyedael"]
[Black "cukin84"]
[Result "1-0"]
[WhiteElo "2327"]
[BlackElo "2144"]
[TimeControl "180+1"]
[EndTime "11:30:16 PST"]
[Termination "stepakyedael won by resignation"]

1. d4 {[%clk 0:03:00.1]} 1... f5 {[%clk 0:02:59.1]} 2. Bg5 {[%clk 0:02:58.1]}
2... h6 {[%clk 0:02:57.6]} 3. Bh4 {[%clk 0:02:54.9]} 3... g5 {[%clk 0:02:57.4]}
4. e3 {[%clk 0:02:53.4]} 4... Nf6 {[%clk 0:02:55.9]} 5. Bg3 {[%clk 0:02:49.6]}
5... d6 {[%clk 0:02:56.1]} 6. Bc4 {[%clk 0:02:48.4]} 6... e6 {[%clk 0:02:54]} 7.
Nd2 {[%clk 0:02:47]} 7... Bg7 {[%clk 0:02:53.3]} 8. h4 {[%clk 0:02:46.8]} 8...
g4 {[%clk 0:02:52.7]} 9. h5 {[%clk 0:02:42.4]} 9... O-O {[%clk 0:02:48.6]} 10.
Ne2 {[%clk 0:02:40.8]} 10... Qe7 {[%clk 0:02:38.1]} 11. Nf4 {[%clk 0:02:39.5]}
11... d5 {[%clk 0:02:34.3]} 12. Ng6 {[%clk 0:02:33.2]} 12... Qf7 {[%clk
0:02:21.8]} 13. Nxf8 {[%clk 0:02:29.4]} 13... Bxf8 {[%clk 0:02:19.9]} 14. Bb3
{[%clk 0:02:23.7]} 14... b6 {[%clk 0:02:15.4]} 15. c4 {[%clk 0:02:20.4]} 15...
Bb7 {[%clk 0:02:13.4]} 16. cxd5 {[%clk 0:02:19.9]} 16... Nxd5 {[%clk 0:02:12.5]}
17. Nc4 {[%clk 0:02:15.2]} 17... Bb4+ {[%clk 0:02:08.1]} 18. Kf1 {[%clk
0:02:15.1]} 18... Na6 {[%clk 0:01:46.7]} 19. Ne5 {[%clk 0:02:10]} 19... Qg7
{[%clk 0:01:46.9]} 20. a3 {[%clk 0:01:59]} 20... Bd6 {[%clk 0:01:45]} 21. Qc2
{[%clk 0:01:54.8]} 21... c5 {[%clk 0:01:38.5]} 22. Ba4 {[%clk 0:01:37.6]} 22...
Rd8 {[%clk 0:01:33]} 23. Bc6 {[%clk 0:01:25.8]} 23... Qc7 {[%clk 0:00:52.4]} 24.
Bxb7 {[%clk 0:01:12.9]} 24... Qxb7 {[%clk 0:00:51.4]} 25. Qd3 {[%clk 0:00:56.5]}
25... cxd4 {[%clk 0:00:43.9]} 26. exd4 {[%clk 0:00:51.2]} 26... f4 {[%clk
0:00:42.9]} 27. Bh4 {[%clk 0:00:50.8]} 27... Rf8 {[%clk 0:00:40.3]} 28. Qg6+
{[%clk 0:00:45.6]} 28... Qg7 {[%clk 0:00:38.2]} 29. Qxe6+ {[%clk 0:00:42.6]}
29... Kh7 {[%clk 0:00:38.4]} 30. Qxd5 {[%clk 0:00:35.3]} 30... Bxe5 {[%clk
0:00:38.3]} 31. Qe4+ {[%clk 0:00:31.6]} 31... Kh8 {[%clk 0:00:37.2]} 32. Qxe5
{[%clk 0:00:30.4]} 32... g3 {[%clk 0:00:29.1]} 33. Qxg7+ {[%clk 0:00:28.2]}
33... Kxg7 {[%clk 0:00:28]} 34. Ke2 {[%clk 0:00:26.1]} 34... gxf2 {[%clk
0:00:20.8]} 35. Bxf2 {[%clk 0:00:24.9]} 35... Nc7 {[%clk 0:00:20.9]} 36. Kd3
{[%clk 0:00:24]} 36... Nd5 {[%clk 0:00:20.7]} 37. Rhe1 {[%clk 0:00:21.8]} 37...
Rc8 {[%clk 0:00:20]} 38. Re5 {[%clk 0:00:20.9]} 38... Nf6 {[%clk 0:00:19.4]} 39.
Bh4 {[%clk 0:00:18.9]} 39... Ng4 {[%clk 0:00:18.9]} 40. Re7+ {[%clk 0:00:17.9]}
40... Kf8 {[%clk 0:00:18.4]} 41. Rxa7 {[%clk 0:00:16.5]} 41... Re8 {[%clk
0:00:18]} 42. Re1 {[%clk 0:00:14.9]} 42... Rd8 {[%clk 0:00:17.3]} 43. Ree7
{[%clk 0:00:13.6]} 43... Ne3 {[%clk 0:00:15.6]} 44. Rh7 {[%clk 0:00:11.3]} 44...
Rxd4+ {[%clk 0:00:12.1]} 45. Kxd4 {[%clk 0:00:10.4]} 45... Nf5+ {[%clk
0:00:12.3]} 46. Ke5 {[%clk 0:00:10.5]} 1-0

[Event "*** Titled Tuesday Blitz"]
[Site "Chess.com"]
[Date "2021.03.02"]
[Round "8"]
[White "Lagmantr"]
[Black "Legendinunknown"]
[Result "0-1"]
[WhiteElo "2738"]
[BlackElo "2629"]
[TimeControl "180+1"]
[EndTime "11:30:19 PST"]
[Termination "Legendinunknown won on time"]

1. Nf3 {[%clk 0:03:00.9]} 1... Nf6 {[%clk 0:02:58.2]} 2. c4 {[%clk 0:03:01.4]}
2... g6 {[%clk 0:02:57.8]} 3. Nc3 {[%clk 0:03:01.1]} 3... Bg7 {[%clk 0:02:58.3]}
4. e4 {[%clk 0:03:01]} 4... d6 {[%clk 0:02:57.9]} 5. g3 {[%clk 0:03:00.4]} 5...
O-O {[%clk 0:02:58.1]} 6. Bg2 {[%clk 0:03:00.6]} 6... e5 {[%clk 0:02:56.9]} 7.
O-O {[%clk 0:03:00.5]} 7... Nbd7 {[%clk 0:02:54.8]} 8. b4 {[%clk 0:02:59.1]}
8... a5 {[%clk 0:02:53.6]} 9. b5 {[%clk 0:02:48.7]} 9... Nc5 {[%clk 0:02:48.9]}
10. d3 {[%clk 0:02:47.8]} 10... Nh5 {[%clk 0:02:45.1]} 11. Re1 {[%clk
0:02:46.9]} 11... f5 {[%clk 0:02:41.4]} 12. exf5 {[%clk 0:02:32.7]} 12... Bxf5
{[%clk 0:02:42.3]} 13. Ng5 {[%clk 0:02:32.2]} 13... Nxd3 {[%clk 0:02:34.2]} 14.
g4 {[%clk 0:02:29.3]} 14... Nxc1 {[%clk 0:02:17.6]} 15. h4 {[%clk 0:01:03.2]}
15... Nd3 {[%clk 0:02:04.6]} 16. gxf5 {[%clk 0:01:03.5]} 16... Nxe1 {[%clk
0:02:00.5]} 17. fxg6 {[%clk 0:01:04.1]} 17... hxg6 {[%clk 0:01:56.6]} 18. Qxe1
{[%clk 0:01:04.3]} 18... Nf4 {[%clk 0:01:47.5]} 19. Qe4 {[%clk 0:01:02.6]} 19...
Qf6 {[%clk 0:01:37.7]} 20. Nd5 {[%clk 0:00:43.1]} 20... Nxd5 {[%clk 0:01:32.3]}
21. Qxd5+ {[%clk 0:00:44]} 21... Kh8 {[%clk 0:01:32.4]} 22. Rf1 {[%clk
0:00:44.6]} 22... Bh6 {[%clk 0:01:28.7]} 23. Qxb7 {[%clk 0:00:20.5]} 23... Bxg5
{[%clk 0:00:59]} 24. hxg5 {[%clk 0:00:21.4]} 24... Qe7 {[%clk 0:00:58.9]} 25.
Qe4 {[%clk 0:00:15.6]} 25... Qxg5 {[%clk 0:00:55.7]} 26. f4 {[%clk 0:00:15.8]}
26... exf4 {[%clk 0:00:52.8]} 27. Qd4+ {[%clk 0:00:14.5]} 27... Kh7 {[%clk
0:00:50.6]} 28. Rf3 {[%clk 0:00:13]} 28... Qe5 {[%clk 0:00:46.8]} 29. Rh3+
{[%clk 0:00:05.9]} 29... Kg7 {[%clk 0:00:45.1]} 30. Qxe5+ {[%clk 0:00:06.5]}
30... dxe5 {[%clk 0:00:46]} 31. Bxa8 {[%clk 0:00:06.8]} 31... Rxa8 {[%clk
0:00:46.9]} 32. Rd3 {[%clk 0:00:06.6]} 32... Kf6 {[%clk 0:00:46]} 33. Rd7 {[%clk
0:00:06.5]} 33... Rc8 {[%clk 0:00:46]} 34. Kf2 {[%clk 0:00:06.7]} 34... e4
{[%clk 0:00:45.7]} 35. c5 {[%clk 0:00:06.9]} 35... g5 {[%clk 0:00:44.2]} 36. c6
{[%clk 0:00:05.8]} 36... g4 {[%clk 0:00:42.7]} 37. a4 {[%clk 0:00:04.6]} 37...
Ke5 {[%clk 0:00:41.7]} 38. Re7+ {[%clk 0:00:04.5]} 38... Kd4 {[%clk 0:00:41.9]}
39. Rf7 {[%clk 0:00:04.7]} 39... e3+ {[%clk 0:00:41.3]} 40. Kg2 {[%clk
0:00:04.6]} 40... f3+ {[%clk 0:00:40.8]} 41. Kg3 {[%clk 0:00:05.2]} 41... e2
{[%clk 0:00:41.1]} 42. Rd7+ {[%clk 0:00:04.1]} 42... Kc4 {[%clk 0:00:40.6]} 43.
Re7 {[%clk 0:00:04.2]} 43... Kb3 {[%clk 0:00:39.4]} 44. Re5 {[%clk 0:00:01.3]}
44... Kxa4 {[%clk 0:00:36.7]} 45. Kf2 {[%clk 0:00:01.7]} 45... Rg8 {[%clk
0:00:35]} 46. b6 {[%clk 0:00:01.4]} 46... cxb6 {[%clk 0:00:34.9]} 47. c7 {[%clk
0:00:02.3]} 47... Rc8 {[%clk 0:00:34.8]} 48. Re4+ {[%clk 0:00:02.2]} 48... Kb5
{[%clk 0:00:34.6]} 49. Re7 {[%clk 0:00:03.1]} 49... a4 {[%clk 0:00:31.8]} 50.
Re8 {[%clk 0:00:04]} 50... Rxe8 {[%clk 0:00:31.4]} 51. c8=Q {[%clk 0:00:03]}
51... Rxc8 {[%clk 0:00:31.3]} 0-1

[Event "*** Titled Tuesday Blitz"]
[Site "Chess.com"]
[Date "2021.03.02"]
[Round "8"]
[White "verdest"]
[Black "Volodar_Murzin"]
[Result "1-0"]
[WhiteElo "2514"]
[BlackElo "2684"]
[TimeControl "180+1"]
[EndTime "11:30:19 PST"]
[Termination "verdest won on time"]

1. d4 {[%clk 0:03:00.9]} 1... Nf6 {[%clk 0:02:56.7]} 2. c4 {[%clk 0:03:00.1]}
2... g6 {[%clk 0:02:57.6]} 3. g3 {[%clk 0:02:59.8]} 3... Bg7 {[%clk 0:02:58]} 4.
Bg2 {[%clk 0:02:59.8]} 4... O-O {[%clk 0:02:58.7]} 5. Nc3 {[%clk 0:02:59.9]}
5... d6 {[%clk 0:02:58.5]} 6. Nf3 {[%clk 0:03:00]} 6... Nbd7 {[%clk 0:02:57.7]}
7. O-O {[%clk 0:02:59.4]} 7... e5 {[%clk 0:02:57.4]} 8. e4 {[%clk 0:02:57.7]}
8... a6 {[%clk 0:02:57.2]} 9. h3 {[%clk 0:02:56.3]} 9... exd4 {[%clk 0:02:55.8]}
10. Nxd4 {[%clk 0:02:57.2]} 10... Ne5 {[%clk 0:02:56]} 11. b3 {[%clk 0:02:52.6]}
11... Nh5 {[%clk 0:02:54.7]} 12. Be3 {[%clk 0:02:47.7]} 12... b5 {[%clk
0:02:25.7]} 13. cxb5 {[%clk 0:02:24]} 13... axb5 {[%clk 0:02:26.6]} 14. Rc1
{[%clk 0:02:17.2]} 14... b4 {[%clk 0:02:22]} 15. Nd5 {[%clk 0:02:16.2]} 15... c5
{[%clk 0:02:17.4]} 16. Nb5 {[%clk 0:01:56.1]} 16... Rxa2 {[%clk 0:02:05.2]} 17.
Nxd6 {[%clk 0:01:53.7]} 17... Qxd6 {[%clk 0:01:42.8]} 18. Bxc5 {[%clk
0:01:49.4]} 18... Qe6 {[%clk 0:01:39.4]} 19. Nc7 {[%clk 0:01:24.1]} 19... Qd7
{[%clk 0:01:22.4]} 20. Bxf8 {[%clk 0:01:16.4]} 20... Bxf8 {[%clk 0:00:53.7]} 21.
Nd5 {[%clk 0:01:15.4]} 21... Ba6 {[%clk 0:00:38.8]} 22. Re1 {[%clk 0:00:50.2]}
22... Qa7 {[%clk 0:00:35]} 23. Re3 {[%clk 0:00:43.6]} 23... Bh6 {[%clk
0:00:31.2]} 24. Rc7 {[%clk 0:00:37.1]} 24... Bxe3 {[%clk 0:00:25.9]} 25. Rxa7
{[%clk 0:00:36.6]} 25... Bxf2+ {[%clk 0:00:26]} 26. Kh2 {[%clk 0:00:33.8]} 26...
Bxa7 {[%clk 0:00:25.8]} 27. Nxb4 {[%clk 0:00:32.2]} 27... Rf2 {[%clk 0:00:13.7]}
28. Nxa6 {[%clk 0:00:28.7]} 28... h6 {[%clk 0:00:11.3]} 29. Nc7 {[%clk
0:00:26.5]} 29... Kh7 {[%clk 0:00:06.7]} 30. Nd5 {[%clk 0:00:26.1]} 30... Bb8
{[%clk 0:00:06.6]} 31. Kg1 {[%clk 0:00:13.3]} 31... Ba7 {[%clk 0:00:06.5]} 32.
Kh2 {[%clk 0:00:10.3]} 32... f5 {[%clk 0:00:05]} 33. exf5 {[%clk 0:00:09.4]}
33... Kg7 {[%clk 0:00:04.5]} 34. f6+ {[%clk 0:00:09.2]} 34... Kf7 {[%clk
0:00:03.9]} 35. Nc7 {[%clk 0:00:06.1]} 35... Nf3+ {[%clk 0:00:03.9]} 36. Qxf3
{[%clk 0:00:06.2]} 36... Rxf3 {[%clk 0:00:04.3]} 37. Bxf3 {[%clk 0:00:07.1]}
37... Nxf6 {[%clk 0:00:03.7]} 38. Nb5 {[%clk 0:00:07.2]} 38... Bb8 {[%clk
0:00:03.5]} 39. Nc3 {[%clk 0:00:07]} 39... Ke6 {[%clk 0:00:03.7]} 40. Kg2 {[%clk
0:00:07]} 40... Ke5 {[%clk 0:00:01]} 41. Be2 {[%clk 0:00:07.2]} 1-0

[Event "*** Titled Tuesday Blitz"]
[Site "Chess.com"]
[Date "2021.03.02"]
[Round "8"]
[White "wadsy27"]
[Black "CakeinSpace2002"]
[Result "1-0"]
[WhiteElo "2541"]
[BlackElo "2415"]
[TimeControl "180+1"]
[EndTime "11:30:19 PST"]
[Termination "wadsy27 won by resignation"]

1. c4 {[%clk 0:03:00.9]} 1... c5 {[%clk 0:02:58.9]} 2. g3 {[%clk 0:03:01.3]}
2... g6 {[%clk 0:02:58.4]} 3. Bg2 {[%clk 0:03:01.9]} 3... Bg7 {[%clk 0:02:59.3]}
4. Nc3 {[%clk 0:03:02.3]} 4... Nc6 {[%clk 0:02:59.8]} 5. Nf3 {[%clk 0:03:02.5]}
5... Nh6 {[%clk 0:02:59.8]} 6. d4 {[%clk 0:02:51.7]} 6... cxd4 {[%clk
0:02:57.6]} 7. Bxh6 {[%clk 0:02:49.9]} 7... Bxh6 {[%clk 0:02:54.5]} 8. Nxd4
{[%clk 0:02:49.6]} 8... O-O {[%clk 0:02:52.2]} 9. O-O {[%clk 0:02:46.1]} 9...
Qb6 {[%clk 0:02:49.6]} 10. Nb3 {[%clk 0:02:40.7]} 10... d6 {[%clk 0:02:48.6]}
11. Nd5 {[%clk 0:02:36.4]} 11... Qd8 {[%clk 0:02:47.6]} 12. Nd4 {[%clk
0:02:32.6]} 12... Nxd4 {[%clk 0:02:44.1]} 13. Qxd4 {[%clk 0:02:31.9]} 13... Bg7
{[%clk 0:02:45]} 14. Qd2 {[%clk 0:02:32.1]} 14... Be6 {[%clk 0:02:44.3]} 15.
Rfd1 {[%clk 0:02:31.2]} 15... Rc8 {[%clk 0:02:43.3]} 16. Rac1 {[%clk 0:02:30.9]}
16... Re8 {[%clk 0:02:39.8]} 17. b3 {[%clk 0:02:30.6]} 17... a6 {[%clk
0:02:37.9]} 18. a4 {[%clk 0:02:26.5]} 18... Rc5 {[%clk 0:02:30.3]} 19. b4 {[%clk
0:02:19.4]} 19... Rc8 {[%clk 0:02:25.8]} 20. a5 {[%clk 0:02:18.5]} 20... Rb8
{[%clk 0:02:16.6]} 21. Nb6 {[%clk 0:02:05.5]} 21... Qc7 {[%clk 0:02:12.8]} 22.
c5 {[%clk 0:02:03]} 22... dxc5 {[%clk 0:02:11.4]} 23. Rxc5 {[%clk 0:02:02.8]}
23... Qd6 {[%clk 0:02:04.3]} 24. Qxd6 {[%clk 0:01:54.5]} 24... exd6 {[%clk
0:02:04.4]} 25. Rc7 {[%clk 0:01:54.7]} 25... Bf5 {[%clk 0:01:51.6]} 26. e3
{[%clk 0:01:51.4]} 26... Be4 {[%clk 0:01:27.1]} 27. Bxe4 {[%clk 0:01:31.2]}
27... Rxe4 {[%clk 0:01:28]} 28. Nd5 {[%clk 0:01:31.2]} 28... h5 {[%clk
0:01:21.3]} 29. f3 {[%clk 0:01:28.6]} 29... Re5 {[%clk 0:01:16.8]} 30. e4 {[%clk
0:01:26.8]} 30... f5 {[%clk 0:01:00.8]} 31. exf5 {[%clk 0:01:22.4]} 31... gxf5
{[%clk 0:00:59.3]} 32. f4 {[%clk 0:01:22.4]} 32... Re4 {[%clk 0:00:55.6]} 33.
Ne7+ {[%clk 0:01:22.3]} 33... Kh8 {[%clk 0:00:53.9]} 34. Nxf5 {[%clk 0:01:22]}
34... Bf8 {[%clk 0:00:49]} 35. Nxd6 {[%clk 0:01:12.2]} 35... Rxb4 {[%clk
0:00:42.6]} 36. Nf7+ {[%clk 0:01:02.7]} 36... Kg8 {[%clk 0:00:42.1]} 37. Rd5
{[%clk 0:01:03.3]} 37... Rb5 {[%clk 0:00:36.2]} 38. Rdd7 {[%clk 0:00:40.7]}
38... Re8 {[%clk 0:00:25.6]} 39. Ne5 {[%clk 0:00:36.1]} 39... Rxa5 {[%clk
0:00:22]} 40. Rxb7 {[%clk 0:00:36.3]} 40... Ra1+ {[%clk 0:00:22]} 41. Kg2 {[%clk
0:00:36.3]} 41... a5 {[%clk 0:00:21.1]} 42. Kh3 {[%clk 0:00:36.5]} 42... Ra2
{[%clk 0:00:19.3]} 43. Rb6 {[%clk 0:00:34.4]} 43... a4 {[%clk 0:00:15.6]} 44.
Rg6+ {[%clk 0:00:32.6]} 44... Kh8 {[%clk 0:00:15.6]} 45. Nf7+ {[%clk 0:00:31.2]}
45... Kh7 {[%clk 0:00:15.5]} 46. f5 {[%clk 0:00:30.4]} 46... Re7 {[%clk
0:00:11]} 47. Ng5+ {[%clk 0:00:30.4]} 47... Kh8 {[%clk 0:00:11.2]} 48. Rd8
{[%clk 0:00:31]} 48... Rf7 {[%clk 0:00:03.4]} 49. Nxf7+ {[%clk 0:00:30.3]} 1-0

[Event "*** Titled Tuesday Blitz"]
[Site "Chess.com"]
[Date "2021.03.02"]
[Round "8"]
[White "PotapovaM"]
[Black "LileKoridze"]
[Result "0-1"]
[WhiteElo "2526"]
[BlackElo "2434"]
[TimeControl "180+1"]
[EndTime "11:30:21 PST"]
[Termination "LileKoridze won on time"]

1. d4 {[%clk 0:03:00.9]} 1... Nf6 {[%clk 0:02:59.7]} 2. c4 {[%clk 0:03:01.2]}
2... e6 {[%clk 0:03:00.2]} 3. Nf3 {[%clk 0:02:57.7]} 3... d5 {[%clk 0:02:59.9]}
4. Nc3 {[%clk 0:02:56.5]} 4... Bb4 {[%clk 0:02:59.6]} 5. cxd5 {[%clk 0:02:54.3]}
5... exd5 {[%clk 0:02:59.6]} 6. Bg5 {[%clk 0:02:55]} 6... O-O {[%clk 0:02:59.6]}
7. e3 {[%clk 0:02:50.5]} 7... c6 {[%clk 0:02:57.2]} 8. Bd3 {[%clk 0:02:50.1]}
8... h6 {[%clk 0:02:54.5]} 9. Bh4 {[%clk 0:02:49.6]} 9... Be7 {[%clk 0:02:54.3]}
10. O-O {[%clk 0:02:48.9]} 10... Bg4 {[%clk 0:02:54.1]} 11. h3 {[%clk
0:02:48.2]} 11... Bh5 {[%clk 0:02:54.2]} 12. Ne2 {[%clk 0:02:12.9]} 12... Bxf3
{[%clk 0:02:44.8]} 13. gxf3 {[%clk 0:02:13.8]} 13... Nh5 {[%clk 0:02:44.3]} 14.
Bxe7 {[%clk 0:02:02.7]} 14... Qxe7 {[%clk 0:02:43.4]} 15. Qd2 {[%clk 0:01:50.1]}
15... f5 {[%clk 0:02:39.7]} 16. Ng3 {[%clk 0:01:30.5]} 16... Qh4 {[%clk
0:02:34.4]} 17. Nxf5 {[%clk 0:01:07.6]} 17... Qg5+ {[%clk 0:02:07.9]} 18. Ng3
{[%clk 0:01:07.8]} 18... Rxf3 {[%clk 0:02:07.2]} 19. Kg2 {[%clk 0:00:31.8]}
19... Rxg3+ {[%clk 0:01:14.5]} 20. fxg3 {[%clk 0:00:30.5]} 20... Nxg3 {[%clk
0:01:15.1]} 21. Kh2 {[%clk 0:00:19.6]} 21... Nxf1+ {[%clk 0:01:12.4]} 22. Rxf1
{[%clk 0:00:20.5]} 22... Nd7 {[%clk 0:01:13.1]} 23. Rg1 {[%clk 0:00:20.4]} 23...
Qe7 {[%clk 0:01:10.2]} 24. Qg2 {[%clk 0:00:19.8]} 24... Nf6 {[%clk 0:01:07]} 25.
Qg6 {[%clk 0:00:18.6]} 25... Qf7 {[%clk 0:01:01]} 26. Qg2 {[%clk 0:00:16.5]}
26... Rf8 {[%clk 0:00:55.2]} 27. Bg6 {[%clk 0:00:15.8]} 27... Qc7+ {[%clk
0:00:54.5]} 28. Kh1 {[%clk 0:00:15.2]} 28... Qe7 {[%clk 0:00:51.8]} 29. Bd3
{[%clk 0:00:14.2]} 29... Ne4 {[%clk 0:00:43.9]} 30. Bxe4 {[%clk 0:00:14.2]}
30... dxe4 {[%clk 0:00:44.8]} 31. Rf1 {[%clk 0:00:11.2]} 31... Rxf1+ {[%clk
0:00:42.7]} 32. Qxf1 {[%clk 0:00:12.1]} 32... Qf7 {[%clk 0:00:42.1]} 33. Qg2
{[%clk 0:00:10.6]} 33... Qxa2 {[%clk 0:00:34.9]} 34. Qxe4 {[%clk 0:00:09.9]}
34... Qd5 {[%clk 0:00:35.4]} 35. Qxd5+ {[%clk 0:00:05.9]} 35... cxd5 {[%clk
0:00:36.3]} 36. Kg2 {[%clk 0:00:06.7]} 36... Kf7 {[%clk 0:00:36.6]} 37. Kf3
{[%clk 0:00:06.8]} 37... Ke6 {[%clk 0:00:33]} 38. Kf4 {[%clk 0:00:04.8]} 38...
g6 {[%clk 0:00:32.1]} 39. h4 {[%clk 0:00:04]} 39... a5 {[%clk 0:00:29.9]} 40. e4
{[%clk 0:00:04.1]} 40... dxe4 {[%clk 0:00:26]} 41. Kxe4 {[%clk 0:00:05]} 41...
b5 {[%clk 0:00:25.5]} 42. d5+ {[%clk 0:00:05.1]} 42... Kd6 {[%clk 0:00:25.7]}
43. Kd4 {[%clk 0:00:05.5]} 43... g5 {[%clk 0:00:24.5]} 44. h5 {[%clk 0:00:04]}
44... a4 {[%clk 0:00:20.5]} 45. Ke4 {[%clk 0:00:02.5]} 45... b4 {[%clk
0:00:18.7]} 46. Kf5 {[%clk 0:00:01.9]} 46... a3 {[%clk 0:00:19.2]} 0-1

[Event "*** Titled Tuesday Blitz"]
[Site "Chess.com"]
[Date "2021.03.02"]
[Round "8"]
[White "SHIVACalypso"]
[Black "alejogarcia1999"]
[Result "0-1"]
[WhiteElo "2345"]
[BlackElo "2523"]
[TimeControl "180+1"]
[EndTime "11:30:23 PST"]
[Termination "alejogarcia1999 won by checkmate"]

1. Nf3 {[%clk 0:03:00.9]} 1... Nf6 {[%clk 0:03:00]} 2. c4 {[%clk 0:03:01.8]}
2... g6 {[%clk 0:03:00.9]} 3. g3 {[%clk 0:03:01.6]} 3... Bg7 {[%clk 0:03:01.8]}
4. Bg2 {[%clk 0:03:02.5]} 4... d6 {[%clk 0:03:02.6]} 5. O-O {[%clk 0:03:03.4]}
5... O-O {[%clk 0:03:03.5]} 6. Nc3 {[%clk 0:03:03.3]} 6... e5 {[%clk 0:03:03.9]}
7. d3 {[%clk 0:03:02]} 7... Nbd7 {[%clk 0:03:03.8]} 8. Rb1 {[%clk 0:03:01.9]}
8... a5 {[%clk 0:03:03.3]} 9. a3 {[%clk 0:03:01.8]} 9... c6 {[%clk 0:03:03.2]}
10. b4 {[%clk 0:03:00.8]} 10... axb4 {[%clk 0:03:04.1]} 11. axb4 {[%clk
0:03:01.7]} 11... d5 {[%clk 0:03:04.6]} 12. b5 {[%clk 0:02:58.6]} 12... e4
{[%clk 0:03:01.2]} 13. Nd2 {[%clk 0:02:52]} 13... exd3 {[%clk 0:03:00.3]} 14.
exd3 {[%clk 0:02:52.9]} 14... Ne5 {[%clk 0:02:58.7]} 15. bxc6 {[%clk 0:02:43.4]}
15... bxc6 {[%clk 0:02:56.6]} 16. cxd5 {[%clk 0:02:43.2]} 16... Nxd5 {[%clk
0:02:56.1]} 17. Nxd5 {[%clk 0:02:41.7]} 17... cxd5 {[%clk 0:02:57]} 18. d4
{[%clk 0:02:38]} 18... Nc6 {[%clk 0:02:56.5]} 19. Nb3 {[%clk 0:02:37.7]} 19...
Bf5 {[%clk 0:02:50.8]} 20. Rb2 {[%clk 0:02:34]} 20... Rb8 {[%clk 0:02:48.3]} 21.
Be3 {[%clk 0:02:31.7]} 21... Rb5 {[%clk 0:02:40.7]} 22. Qd2 {[%clk 0:02:05.6]}
22... Qb6 {[%clk 0:02:36.4]} 23. Rc1 {[%clk 0:01:49.7]} 23... Na5 {[%clk
0:02:21.5]} 24. Nxa5 {[%clk 0:01:34.3]} 24... Rxb2 {[%clk 0:02:19.5]} 25. Qc3
{[%clk 0:01:34.9]} 25... Rb5 {[%clk 0:02:02.1]} 26. Nc6 {[%clk 0:01:32.1]} 26...
Re8 {[%clk 0:01:58.1]} 27. Bf1 {[%clk 0:01:23.3]} 27... Rb1 {[%clk 0:01:55.4]}
28. Bg5 {[%clk 0:00:50.6]} 28... Rxc1 {[%clk 0:01:44.2]} 29. Qxc1 {[%clk
0:00:51.5]} 29... Bxd4 {[%clk 0:01:37]} 30. Ne7+ {[%clk 0:00:51.4]} 30... Rxe7
{[%clk 0:01:36.5]} 31. Bxe7 {[%clk 0:00:52.3]} 31... Bxf2+ {[%clk 0:01:36.3]}
32. Kh1 {[%clk 0:00:52.3]} 32... Qe6 {[%clk 0:01:29.4]} 33. Bg5 {[%clk
0:00:47.8]} 33... f6 {[%clk 0:01:18.3]} 34. Bf4 {[%clk 0:00:43.2]} 34... g5
{[%clk 0:01:16.5]} 35. Bd2 {[%clk 0:00:42.4]} 35... Be4+ {[%clk 0:00:58.4]} 36.
Bg2 {[%clk 0:00:40.8]} 36... Bxg2+ {[%clk 0:00:58.4]} 37. Kxg2 {[%clk
0:00:41.7]} 37... Bb6 {[%clk 0:00:55.7]} 38. Qb2 {[%clk 0:00:34.6]} 38... Qe2+
{[%clk 0:00:53.8]} 39. Kh3 {[%clk 0:00:27.6]} 39... Bd8 {[%clk 0:00:39.6]} 40.
Qd4 {[%clk 0:00:17.3]} 40... Qe6+ {[%clk 0:00:35.8]} 41. Kg2 {[%clk 0:00:16.2]}
41... Qe4+ {[%clk 0:00:35.7]} 42. Qxe4 {[%clk 0:00:15.2]} 42... dxe4 {[%clk
0:00:36.6]} 43. Bc3 {[%clk 0:00:12.5]} 43... f5 {[%clk 0:00:36.5]} 44. Kf2
{[%clk 0:00:11.2]} 44... Kf7 {[%clk 0:00:36.3]} 45. Ke2 {[%clk 0:00:11.7]} 45...
Ke6 {[%clk 0:00:36.7]} 46. Bg7 {[%clk 0:00:10.5]} 46... Kd5 {[%clk 0:00:36.2]}
47. Bh6 {[%clk 0:00:10.3]} 47... Bf6 {[%clk 0:00:34.3]} 48. Bf8 {[%clk
0:00:09.2]} 48... f4 {[%clk 0:00:32.2]} 49. gxf4 {[%clk 0:00:06.5]} 49... gxf4
{[%clk 0:00:33.1]} 50. Bh6 {[%clk 0:00:07.3]} 50... Ke5 {[%clk 0:00:33.1]} 51.
h3 {[%clk 0:00:06.6]} 51... Kf5 {[%clk 0:00:33.2]} 52. Bf8 {[%clk 0:00:06.7]}
52... Bd4 {[%clk 0:00:31.6]} 53. Bb4 {[%clk 0:00:06.7]} 53... f3+ {[%clk
0:00:31.8]} 54. Kf1 {[%clk 0:00:06.6]} 54... e3 {[%clk 0:00:32.2]} 55. Be1
{[%clk 0:00:06.6]} 55... e2# {[%clk 0:00:30.8]} 0-1